fUST/lending_fUST_20260111
["ID","MTS","AMOUNT","RATE_DAILY","PERIOD"]
[401253350,1768077046259,-500.0,0.00036712,2]
[401253353,1768077046269,-500.0,0.00036712,2]
[401253355,1768077046278,-500.0,0.00036712,2]
[401253357,1768077046288,-502.32745149,0.00036712,2]
[401253359,1768077046298,-151.0,0.00036712,31]
[401253361,1768077046307,-532.55,0.00036712,30]
[401253362,1768077046317,-389.33209091,0.00036713,2]
[401253365,1768077046328,-466.362,0.00036757,46]
[401253367,1768077046338,-384.52,0.00036773,60]
[401253369,1768077046348,-95986.0676826,0.00036791,16]
[401253371,1768077046357,-384.6690909,0.00036873,60]
[401253373,1768077046367,-258.37953721,0.00036902,2]
[401253375,1768077046376,-295.0,0.00036978,2]
[401253377,1768077046385,-206.26316914,0.0003699,3]
[401253379,1768077046394,-407.88214464,0.00036991,2]
[401253381,1768077046404,-2044.18983378,0.00037,2]
[401253383,1768077046414,-151.0,0.00037013,31]
[401253385,1768077046428,-151.0,0.00037013,31]
[401253387,1768077046437,-277.124706,0.00037013,31]
[401253389,1768077046447,-331.0,0.00037057,2]
[401253391,1768077046457,-585.10841417,0.00037079,2]
[401253393,1768077046467,-2338.09322302,0.00037079,2]
[401253396,1768077046477,-312.48347739,0.00037079,2]
[401253398,1768077046487,-152.0,0.00037081,14]
[401253399,1768077046496,-152.0,0.00037081,14]
[401253402,1768077046507,-152.0,0.00037081,14]
[401253404,1768077046517,-152.0,0.00037081,14]
[401253405,1768077046526,-152.0,0.00037081,14]
[401253408,1768077046536,-214.57010533,0.00037081,14]
[401253410,1768077046546,-152.0,0.00037081,14]
[401253412,1768077046555,-152.0,0.00037081,14]
[401253414,1768077046565,-152.0,0.00037081,14]
[401253416,1768077046574,-152.0,0.00037081,14]
[401253418,1768077046583,-152.0,0.00037081,14]
[401253420,1768077046593,-152.0,0.00037081,14]
[401253438,1768077046742,-202.68303487,0.00037081,14]
[401253440,1768077046752,-359.96007917,0.00037081,7]
[401253442,1768077046761,-20638.8471924,0.00037082,2]
[401253443,1768077046771,-3095.4907844,0.00037082,2]
[401253445,1768077046780,-4683.9574127,0.00037082,2]
[401253448,1768077046790,-157.421281,0.00037091,31]
[401253450,1768077046799,-151.0,0.00037091,31]
[401253452,1768077046809,-151.0,0.00037091,31]
[401253453,1768077046818,-151.0,0.00037091,31]
[401253455,1768077046828,-151.0,0.00037091,31]
[401253458,1768077046837,-151.0,0.00037091,31]
[401253460,1768077046846,-151.0,0.00037091,31]
[401253462,1768077046855,-151.0,0.00037091,31]
[401253464,1768077046864,-151.0,0.00037091,31]
[401253465,1768077046874,-151.0,0.00037091,31]
[401253467,1768077046883,-242.550437,0.00037091,31]
[401253470,1768077046895,-151.0,0.00037091,28]
[401253472,1768077046906,-151.0,0.00037091,28]
[401253474,1768077046915,-151.0,0.00037091,28]
[401253476,1768077046924,-151.0,0.00037091,28]
[401253478,1768077046934,-315.18853,0.00037091,31]
[401253480,1768077046943,-241.887947,0.00037091,28]
[401253482,1768077046953,-315.18853,0.00037091,31]
[401253484,1768077046962,-315.18853,0.00037091,31]
[401253486,1768077046971,-315.18853,0.00037091,31]
[401253488,1768077046981,-315.18853,0.00037091,31]
[401253490,1768077046991,-315.18853,0.00037091,31]
[401253491,1768077047000,-315.18853,0.00037091,31]
[401253494,1768077047010,-315.18853,0.00037091,31]
[401253496,1768077047020,-315.18853,0.00037091,31]
[401253497,1768077047029,-315.18853,0.00037091,31]
[401253500,1768077047039,-315.18853,0.00037091,31]
[401253501,1768077047048,-315.18853,0.00037091,31]
[401253503,1768077047057,-315.18853,0.00037091,31]
[401253506,1768077047067,-315.18853,0.00037091,31]
[401253507,1768077047076,-315.18853,0.00037091,31]
[401253510,1768077047085,-315.188524,0.00037091,31]
[401253511,1768077047095,-151.0,0.00037091,31]
[401253514,1768077047104,-163.913875,0.00037091,31]
[401253515,1768077047115,-151.0,0.00037091,31]
[401253517,1768077047125,-151.0,0.00037091,31]
[401253520,1768077047135,-151.0,0.00037091,31]
[401253522,1768077047144,-214.28838,0.00037091,31]
[401253524,1768077047153,-479.331389,0.00037091,31]
[401253526,1768077047164,-479.331389,0.00037091,31]
[401253528,1768077047173,-479.331389,0.00037091,31]
[401253530,1768077047183,-479.331389,0.00037091,31]
[401253532,1768077047192,-479.331389,0.00037091,31]
[401253534,1768077047201,-479.331389,0.00037091,31]
[401253536,1768077047211,-479.331389,0.00037091,31]
[401253538,1768077047220,-479.331389,0.00037091,31]
[401253540,1768077047229,-479.331389,0.00037091,31]
[401253542,1768077047239,-479.331389,0.00037091,31]
[401253544,1768077047251,-479.331389,0.00037091,31]
[401253546,1768077047260,-479.331389,0.00037091,31]
[401253548,1768077047270,-479.331389,0.00037091,31]
[401253550,1768077047279,-479.331389,0.00037091,31]
[401253552,1768077047288,-479.331389,0.00037091,31]
[401253554,1768077047297,-479.33138,0.00037091,31]
[401253556,1768077047306,-151.895159,0.00037091,31]
[401253558,1768077047316,-151.895159,0.00037091,31]
[401253560,1768077047326,-151.895159,0.00037091,31]
[401253562,1768077047335,-151.895159,0.00037091,31]
[401253564,1768077047344,-151.895159,0.00037091,31]
[401253566,1768077047354,-151.895159,0.00037091,31]
[401253568,1768077047363,-151.895159,0.00037091,31]
[401253570,1768077047372,-151.895159,0.00037091,31]
[401253572,1768077047381,-151.895159,0.00037091,31]
[401253574,1768077047390,-151.0,0.00037091,31]
[401253576,1768077047400,-151.0,0.00037091,31]
[401253578,1768077047409,-151.0,0.00037091,31]
[401253580,1768077047419,-151.0,0.00037091,31]
[401253582,1768077047428,-151.895159,0.00037091,31]
[401253584,1768077047438,-151.895159,0.00037091,31]
[401253586,1768077047447,-151.895159,0.00037091,31]
[401253588,1768077047457,-151.895159,0.00037091,31]
[401253590,1768077047466,-151.895159,0.00037091,31]
[401253592,1768077047475,-151.895159,0.00037091,31]
[401253594,1768077047484,-151.895151,0.00037091,31]
[401253596,1768077047493,-155.463633,0.00037091,31]
[401253598,1768077047502,-151.0,0.00037091,31]
[401253600,1768077047512,-151.0,0.00037091,31]
[401253602,1768077047526,-211.591357,0.00037091,31]
[401253604,1768077047535,-151.0,0.00037091,31]
[401253606,1768077047545,-151.0,0.00037091,31]
[401253608,1768077047553,-151.0,0.00037091,31]
[401253610,1768077047563,-155.211218,0.00037091,31]
[401253612,1768077047572,-151.0,0.00037091,31]
[401253614,1768077047581,-157.126084,0.00037091,31]
[401253616,1768077047591,-245.445707,0.00037091,31]
[401253618,1768077047599,-245.445707,0.00037091,31]
[401253620,1768077047609,-245.445707,0.00037091,31]
[401253622,1768077047619,-245.445707,0.00037091,31]
[401253624,1768077047628,-245.445707,0.00037091,31]
[401253626,1768077047637,-245.445707,0.00037091,31]
[401253628,1768077047646,-245.445707,0.00037091,31]
[401253630,1768077047656,-245.445707,0.00037091,31]
[401253632,1768077047665,-245.445707,0.00037091,31]
[401253634,1768077047674,-245.445707,0.00037091,31]
[401253636,1768077047683,-245.445707,0.00037091,31]
[401253638,1768077047693,-245.445707,0.00037091,31]
[401253640,1768077047703,-245.445707,0.00037091,31]
[401253642,1768077047712,-245.445707,0.00037091,31]
[401253644,1768077047721,-245.445707,0.00037091,31]
[401253646,1768077047731,-245.445699,0.00037091,31]
[401253648,1768077047740,-154.250355,0.00037091,31]
[401253650,1768077047749,-151.0,0.00037091,31]
[401253652,1768077047758,-151.0,0.00037091,31]
[401253654,1768077047768,-151.0,0.00037091,31]
[401253656,1768077047778,-151.0,0.00037091,31]
[401253658,1768077047788,-151.0,0.00037091,31]
[401253660,1768077047797,-151.0,0.00037091,31]
[401253662,1768077047805,-151.0,0.00037091,31]
[401253664,1768077047814,-151.0,0.00037091,31]
[401253666,1768077047824,-151.0,0.00037091,31]
[401253668,1768077047833,-151.0,0.00037091,31]
[401253670,1768077047842,-151.0,0.00037091,31]
[401253672,1768077047851,-162.614017,0.00037091,31]
[401253674,1768077047861,-151.0,0.00037091,31]
[401253676,1768077047871,-151.0,0.00037091,31]
[401253679,1768077047880,-768996.0745935,0.00037091,20]
[401253681,1768077047890,-21310.21248202,0.00037091,10]
[401253683,1768077047899,-341382.11155845,0.00037091,20]
[401253684,1768077047908,-2433408.13804545,0.00037091,20]
[401253702,1768077048069,-306.12863019,0.00025754,2]
[401253704,1768077048079,-307.98,0.00032877,10]
[401253705,1768077048089,-509.0,0.00036712,30]
[401253706,1768077048098,-76641.44117415,0.00037091,20]
[401254363,1768077437376,-195.01810974,0.0001,2]
[401254364,1768077438919,-742.21385748,0.0001,2]
[401254365,1768077442170,-342.87325689,0.0001,2]
[401254366,1768077447161,-261.89153116,0.0001,2]
[401254367,1768077448597,-263.13752508,0.0001,2]
[401254368,1768077450550,-235.20594032,0.0001,2]
[401254369,1768077453242,-311.5942483,0.0001,2]
[401254370,1768077454644,-527.76265009,0.0001,2]
[401254371,1768077456728,-234.51894738,0.0001,2]
[401254372,1768077460906,-208.25570697,0.0001,2]
[401254373,1768077463669,-228.08421647,0.0001,2]
[401254374,1768077465190,-206.1657517,0.0001,2]
[401254375,1768077466737,-236.86247492,0.0001,2]
[401254376,1768077469125,-240.27105052,0.0001,2]
[401254412,1768077716372,-1200.0,9.999e-05,2]
[401254413,1768077716404,-300.0,9.999e-05,2]
[401254414,1768077716433,-806.8197951,0.0001,2]
[401254415,1768077716446,-1200.0,0.0001,2]
[401254416,1768077716458,-300.0,0.0001,2]
[401254417,1768077716471,-3886.3604098,0.0001,2]
[401254418,1768077716481,-560.0,0.0001,2]
[401254419,1768077716491,-342.8140102,0.00010099,2]
[401254420,1768077716500,-373.089,0.00010099,2]
[401254421,1768077716510,-1030.9167849,0.00010199,2]
[401254433,1768078112659,-186.98897255,0.00010099,2]
[401254434,1768078112689,-1200.0,0.00010198,2]
[401254435,1768078112718,-300.0,0.00010198,2]
[401254462,1768078231775,-300.0,0.00010198,2]
[401254464,1768078231785,-300.0,0.00010198,2]
[401254466,1768078231794,-278.0,0.00010198,2]
[401254468,1768078231803,-300.0,0.00010198,2]
[401254470,1768078231812,-563.0,0.00010198,2]
[401254472,1768078231820,-1200.0,0.00010198,2]
[401254473,1768078231830,-340.44092366,0.00010198,2]
[401254474,1768078231841,-50000.0,0.00010199,2]
[401254475,1768078231851,-300.0,0.00010199,2]
[401254476,1768078231860,-300.0,0.00010199,2]
[401254477,1768078231869,-300.0,0.00010199,2]
[401254478,1768078231878,-300.0,0.00010199,2]
[401254479,1768078231887,-300.0,0.00010199,2]
[401254480,1768078231897,-300.0,0.00010199,2]
[401254481,1768078231906,-300.0,0.00010199,2]
[401254482,1768078231915,-300.0,0.00010199,2]
[401254483,1768078231924,-300.0,0.00010199,2]
[401254484,1768078231932,-300.0,0.00010199,2]
[401254485,1768078231941,-300.0,0.00010199,2]
[401254486,1768078231951,-300.0,0.00010199,2]
[401254487,1768078231961,-300.0,0.00010199,2]
[401254488,1768078231971,-300.0,0.00010199,2]
[401254489,1768078231980,-300.0,0.00010199,2]
[401254490,1768078231989,-201.28727851,0.00010938,2]
[401254491,1768078231999,-1500.0,0.00010959,2]
[401254492,1768078232008,-1033.31921527,0.00011,2]
[401254493,1768078232017,-420.0,0.00011215,2]
[401254494,1768078232026,-1680.0,0.00011218,2]
[401254495,1768078232035,-2031.1531635,0.00011797,2]
[401254496,1768078232044,-151.0,0.00012,2]
[401254497,1768078232053,-10000.0,0.00012045,2]
[401254498,1768078232063,-401.72028992,0.00012198,2]
[401254499,1768078232072,-151.0,0.000123,2]
[401254500,1768078232081,-151.0,0.000123,2]
[401254501,1768078232090,-214.31,0.00012325,2]
[401254502,1768078232099,-500.0,0.00012328,2]
[401254503,1768078232108,-414.2675211,0.00012328,2]
[401254504,1768078232118,-550.32,0.00012329,2]
[401254505,1768078232126,-11249.0,0.00012329,2]
[401254506,1768078232135,-9374.17,0.00012329,2]
[401254507,1768078232144,-7811.81,0.00012329,2]
[401254508,1768078232153,-6509.84,0.00012329,2]
[401254509,1768078232162,-5424.87,0.00012329,2]
[401254510,1768078232172,-4520.72,0.00012329,2]
[401254511,1768078232181,-3767.27,0.00012329,2]
[401254512,1768078232190,-3139.39,0.00012329,2]
[401254513,1768078232199,-2616.16,0.00012329,2]
[401254514,1768078232209,-2180.13,0.00012329,2]
[401254515,1768078232218,-1816.78,0.00012329,2]
[401254516,1768078232227,-1513.98,0.00012329,2]
[401254517,1768078232236,-1261.65,0.00012329,2]
[401254518,1768078232245,-1051.38,0.00012329,2]
[401254519,1768078232253,-876.15,0.00012329,2]
[401254520,1768078232263,-730.12,0.00012329,2]
[401254521,1768078232272,-608.43,0.00012329,2]
[401254522,1768078232281,-507.03,0.00012329,2]
[401254523,1768078232290,-422.52,0.00012329,2]
[401254524,1768078232299,-352.1,0.00012329,2]
[401254525,1768078232308,-293.42,0.00012329,2]
[401254526,1768078232317,-244.52,0.00012329,2]
[401254527,1768078232326,-203.76,0.00012329,2]
[401254528,1768078232335,-169.8,0.00012329,2]
[401254529,1768078232344,-849.05,0.00012329,2]
[401254530,1768078232353,-587.0,0.00012335,2]
[401254531,1768078232363,-2351.0,0.00012339,2]
[401254532,1768078232372,-151.0,0.000124,2]
[401254533,1768078232382,-151.0,0.000124,2]
[401254534,1768078232391,-151.0,0.000124,2]
[401254535,1768078232400,-151.0,0.000124,2]
[401254536,1768078232410,-151.0,0.000124,2]
[401254537,1768078232419,-151.0,0.000124,2]
[401254538,1768078232428,-151.0,0.000125,2]
[401254539,1768078232438,-151.0,0.000125,2]
[401254540,1768078232447,-151.0,0.000125,2]
[401254541,1768078232456,-151.0,0.000125,2]
[401254542,1768078232466,-151.0,0.000125,2]
[401254543,1768078232475,-151.0,0.000125,2]
[401254544,1768078232485,-151.0,0.000125,2]
[401254545,1768078232494,-214.31,0.00012599,2]
[401254546,1768078232503,-500.0,0.00012602,2]
[401254547,1768078232512,-600.0,0.00012739,2]
[401254548,1768078232522,-1500.0,0.0001274,2]
[401254549,1768078232531,-999.0,0.00012831,2]
[401254550,1768078232540,-214.33301538,0.00012873,2]
[401254551,1768078232549,-500.0,0.00012876,2]
[401254552,1768078232558,-7142.16034431,0.00013,2]
[401254553,1768078232569,-533.59953373,0.0001315,2]
[401254554,1768078232577,-500.0,0.00013273,2]
[401254555,1768078232587,-500.0,0.00013273,2]
[401254556,1768078232596,-500.0,0.00013273,2]
[401254557,1768078232605,-500.0,0.00013273,2]
[401254558,1768078232614,-500.0,0.00013273,2]
[401254559,1768078232624,-500.0,0.00013273,2]
[401254560,1768078232633,-401.64301006,0.00013273,2]
[401254561,1768078232642,-500.0,0.00013273,2]
[401254562,1768078232652,-500.0,0.00013273,2]
[401254563,1768078232662,-500.0,0.00013273,2]
[401254564,1768078232671,-500.0,0.00013273,2]
[401254565,1768078232681,-500.0,0.00013273,2]
[401254566,1768078232690,-411.79129321,0.00013273,2]
[401254567,1768078232700,-500.0,0.00013273,2]
[401254568,1768078232710,-500.0,0.00013273,2]
[401254569,1768078232720,-500.0,0.00013273,2]
[401254570,1768078232729,-500.0,0.00013273,2]
[401254571,1768078232739,-500.0,0.00013273,2]
[401254572,1768078232747,-500.0,0.00013273,2]
[401254573,1768078232757,-500.0,0.00013273,2]
[401254574,1768078232766,-500.0,0.00013273,2]
[401254575,1768078232776,-500.0,0.00013273,2]
[401254576,1768078232786,-500.0,0.00013273,2]
[401254577,1768078232795,-500.0,0.00013273,2]
[401254578,1768078232804,-400.46467622,0.00013273,2]
[401254579,1768078232820,-500.0,0.00013273,2]
[401254580,1768078232829,-500.0,0.00013273,2]
[401254581,1768078232839,-500.0,0.00013273,2]
[401254582,1768078232849,-564.05017916,0.00013273,2]
[401254583,1768078232868,-500.0,0.00013273,2]
[401254584,1768078232884,-500.0,0.00013273,2]
[401254585,1768078232894,-500.0,0.00013273,2]
[401254586,1768078232903,-500.0,0.00013273,2]
[401254587,1768078232913,-250.0,0.00013475,2]
[401254588,1768078232922,-823.0,0.00013565,2]
[401254589,1768078232932,-3243.0,0.00013573,2]
[401254590,1768078232942,-1880.77930863,0.0001361,2]
[401254591,1768078232952,-300.0,0.00013673,2]
[401254592,1768078232962,-509.39,0.00013698,2]
[401254593,1768078232971,-509.39,0.00013698,2]
[401254594,1768078232983,-509.39,0.00013698,2]
[401254595,1768078232993,-509.39,0.00013698,2]
[401254596,1768078233002,-509.39,0.00013698,2]
[401254597,1768078233011,-509.39,0.00013698,2]
[401254598,1768078233021,-509.39,0.00013698,2]
[401254599,1768078233030,-509.39,0.00013698,2]
[401254600,1768078233040,-509.39,0.00013698,2]
[401254601,1768078233049,-509.39,0.00013698,2]
[401254602,1768078233059,-509.39,0.00013698,2]
[401254603,1768078233069,-509.39,0.00013698,2]
[401254604,1768078233079,-509.39,0.00013698,2]
[401254605,1768078233089,-509.39,0.00013698,2]
[401254606,1768078233099,-500.0,0.00013699,2]
[401254607,1768078233109,-500.0,0.00013699,2]
[401254608,1768078233119,-500.0,0.00013699,2]
[401254609,1768078233231,-500.0,0.00013699,2]
[401254610,1768078233241,-500.0,0.00013699,2]
[401254611,1768078233250,-500.0,0.00013699,2]
[401254612,1768078233260,-500.0,0.00013699,2]
[401254613,1768078233270,-297.24933695,0.00013699,2]
[401254614,1768078233389,-202.75066305,0.00013699,2]
[401254615,1768078233399,-500.0,0.00013699,2]
[401254616,1768078233409,-500.0,0.00013699,2]
[401254617,1768078233419,-500.0,0.00013699,2]
[401254618,1768078233428,-500.0,0.00013699,2]
[401254619,1768078233438,-10.2603644,0.00013699,2]
[401254620,1768078233449,-239.7396356,0.00013699,2]
[401254621,1768078233460,-500.0,0.00013699,2]
[401254622,1768078233469,-500.0,0.00013699,2]
[401254623,1768078233479,-500.0,0.00013699,2]
[401254624,1768078233489,-260.2603644,0.00013699,2]
[401254625,1768078233501,-239.7396356,0.00013699,2]
[401254626,1768078233510,-500.0,0.00013699,2]
[401254627,1768078233519,-502.56460525,0.00013699,2]
[401254628,1768078233528,-500.0,0.00013699,2]
[401254629,1768078233538,-298.72192802,0.00013699,2]
[401254630,1768078233547,-500.0,0.00013699,2]
[401254631,1768078233557,-500.0,0.00013699,2]
[401254632,1768078233566,-500.0,0.00013699,2]
[401254633,1768078233576,-500.0,0.00013699,2]
[401254634,1768078233586,-500.0,0.00013699,2]
[401254635,1768078233596,-500.0,0.00013699,2]
[401254636,1768078233605,-500.0,0.00013699,2]
[401254637,1768078233615,-500.7387933,0.00013699,2]
[401254638,1768078233624,-500.0171853,0.00013699,2]
[401254639,1768078233633,-472.83301682,0.00013699,2]
[401254640,1768078233645,-137.81749435,0.00013699,2]
[401254641,1768078233654,-279.91574011,0.00013699,2]
[401254642,1768078233666,-220.08425989,0.00013699,2]
[401254643,1768078233676,-227.06376611,0.00013699,2]
[401254644,1768078233686,-500.40040648,0.00013699,2]
[401254645,1768078233696,-69.18030824,0.00013699,2]
[401254647,1768078237664,-300.0,0.00013366,2]
[401254648,1768078237675,-500.0,0.00013698,2]
[401254649,1768078237684,-500.0,0.00013698,2]
[401254650,1768078237693,-500.0,0.00013698,2]
[401254652,1768078237702,-500.0,0.00013698,2]
[401254654,1768078237711,-500.0,0.00013698,2]
[401254656,1768078237720,-500.0,0.00013698,2]
[401254658,1768078237730,-500.0,0.00013698,2]
[401254660,1768078237739,-500.0,0.00013698,2]
[401254662,1768078237748,-500.0,0.00013698,2]
[401254664,1768078237757,-283.3787305,0.00013699,2]
[401254666,1768078237765,-500.0,0.00013699,2]
[401254668,1768078237774,-500.0,0.00013699,2]
[401254670,1768078237783,-500.0,0.00013699,2]
[401254672,1768078237794,-500.16597086,0.00013699,2]
[401254674,1768078237803,-500.76011771,0.00013699,2]
[401254676,1768078237812,-500.0,0.00013699,2]
[401254678,1768078237821,-500.0,0.00013699,2]
[401254680,1768078237831,-443.77041137,0.00013699,2]
[401254682,1768078237840,-295.9151759,0.00013699,2]
[401254684,1768078237848,-366.95119537,0.00013699,2]
[401254686,1768078237859,-500.0,0.00013699,2]
[401254688,1768078237868,-500.66295379,0.00013699,2]
[401254690,1768078237877,-268.13097792,0.00013699,2]
[401254692,1768078237886,-286.81506182,0.00013699,2]
[401254694,1768078237896,-500.0,0.00013699,2]
[401254696,1768078237905,-501.32276914,0.00013699,2]
[401254698,1768078237914,-441.79967602,0.00013699,2]
[401254700,1768078237923,-500.0,0.00013699,2]
[401254702,1768078237932,-500.0,0.00013699,2]
[401254704,1768078237942,-500.0,0.00013699,2]
[401254706,1768078237951,-252.81793801,0.00013699,2]
[401254708,1768078237960,-500.0,0.00013699,2]
[401254710,1768078237970,-500.0,0.00013699,2]
[401254712,1768078237979,-500.0,0.00013699,2]
[401254714,1768078237988,-500.0,0.00013699,2]
[401254716,1768078237997,-500.0,0.00013699,2]
[401254718,1768078238006,-500.0,0.00013699,2]
[401254720,1768078238015,-500.0,0.00013699,2]
[401254722,1768078238024,-500.0,0.00013699,2]
[401254724,1768078238034,-607.41040289,0.00013699,2]
[401254726,1768078238043,-500.0,0.00013699,2]
[401254728,1768078238052,-500.0,0.00013699,2]
[401254730,1768078238061,-500.0,0.00013699,2]
[401254732,1768078238071,-500.0,0.00013699,2]
[401254734,1768078238080,-1010.98739129,0.00013821,2]
[401254736,1768078238090,-500.0,0.00013821,2]
[401254738,1768078238099,-1000.0,0.00013821,2]
[401254740,1768078238108,-345.42301472,0.00013821,2]
[401254742,1768078238117,-500.0,0.00013821,2]
[401254744,1768078238127,-613.91769968,0.00013821,2]
[401254746,1768078238136,-544.98070057,0.00013821,2]
[401254748,1768078238145,-1000.0,0.00013821,2]
[401254750,1768078238155,-500.0,0.00013821,2]
[401254752,1768078238164,-259.53509547,0.00013821,2]
[401254754,1768078238174,-500.0,0.00013821,2]
[401254756,1768078238186,-1000.0,0.00013821,2]
[401254758,1768078238195,-1000.0,0.00013821,2]
[401254760,1768078238204,-1000.0,0.00013821,2]
[401254761,1768078238214,-1000.0,0.00013821,2]
[401254763,1768078238224,-1000.0,0.00013821,2]
[401254764,1768078238233,-973.2526551,0.00013821,2]
[401254765,1768078238243,-1000.0,0.00013821,2]
[401254766,1768078238251,-723.48736773,0.00013821,2]
[401254767,1768078238260,-1000.0,0.00013821,2]
[401254768,1768078238269,-1000.0,0.00013821,2]
[401254769,1768078238279,-1000.0,0.00013821,2]
[401254770,1768078238288,-796.84909797,0.00013821,2]
[401254771,1768078238298,-500.0,0.00013821,2]
[401254772,1768078238307,-667.6319526,0.00013821,2]
[401254773,1768078238316,-1000.0,0.00013821,2]
[401254774,1768078238326,-1000.0,0.00013821,2]
[401254775,1768078238337,-720.0,0.00014013,2]
[401254776,1768078238346,-445.01,0.00014043,2]
[401254777,1768078238356,-151.0,0.000141,2]
[401254778,1768078238367,-462.99965618,0.00014198,2]
[401254779,1768078238376,-1000.0,0.00014247,2]
[401254780,1768078238385,-1000.0,0.00014247,2]
[401254781,1768078238394,-1000.0,0.00014247,2]
[401254782,1768078238403,-1000.0,0.00014247,2]
[401254783,1768078238413,-500.0,0.00014247,2]
[401254784,1768078238423,-1000.0,0.00014247,2]
[401254785,1768078238433,-469.53593685,0.00014247,2]
[401254786,1768078238443,-1000.0,0.00014247,2]
[401254787,1768078238452,-1000.0,0.00014247,2]
[401254788,1768078238462,-313.64870907,0.00014247,2]
[401254789,1768078238472,-1000.0,0.00014247,2]
[401254790,1768078238482,-1000.62599215,0.00014247,2]
[401254791,1768078238491,-500.0,0.00014247,2]
[401254792,1768078238501,-1000.0,0.00014247,2]
[401254793,1768078238511,-1000.0,0.00014247,2]
[401254794,1768078238521,-1000.0,0.00014247,2]
[401254795,1768078238530,-500.0,0.00014247,2]
[401254796,1768078238539,-500.0,0.00014368,2]
[401254797,1768078238549,-391.0513895,0.00014368,2]
[401254798,1768078238558,-500.0,0.00014368,2]
[401254799,1768078238568,-500.0,0.00014368,2]
[401254800,1768078238578,-5000.0,0.0001451,2]
[401254801,1768078238587,-1500.0,0.00014795,2]
[401254802,1768078238597,-988.64589349,0.00014795,2]
[401254803,1768078238607,-640.67728986,0.00014795,2]
[401254804,1768078238617,-1102.53259662,0.00014795,2]
[401254805,1768078238627,-1500.0,0.00014795,2]
[401254806,1768078238637,-100000.0,0.00014882,2]
[401254807,1768078238646,-1152.0,0.00014919,2]
[401254808,1768078238656,-1000.0,0.00015,2]
[401254809,1768078238666,-514.12213244,0.00015342,2]
[401254810,1768078238676,-498.9723282,0.00015342,2]
[401254811,1768078238685,-864.0,0.00015414,2]
[401254812,1768078238694,-33630.8744234,0.00015671,2]
[401254813,1768078238704,-524.27902244,0.00016198,2]
[401254814,1768078238713,-151.0,0.000162,2]
[401254815,1768078238722,-154.9098912,0.00016438,2]
[401254816,1768078238731,-260.11060349,0.00016438,2]
[401254817,1768078238740,-1000.0,0.00016955,2]
[401254818,1768078238750,-291.0,0.00017645,2]
[401254819,1768078238758,-585.10841417,0.00017706,2]
[401254820,1768078238768,-366.0,0.00017828,2]
[401254821,1768078238776,-380.1,0.00017945,2]
[401254822,1768078238785,-422.0,0.00017978,2]
[401254823,1768078238795,-585.5583887,0.00018198,2]
[401254824,1768078238804,-151.0,0.000183,2]
[401254825,1768078238813,-1000.0,0.00018651,2]
[401254826,1768078238822,-244.0,0.00018651,2]
[401254827,1768078238831,-303.10001603,0.000189,2]
[401254828,1768078238840,-303.10001603,0.00019089,2]
[401254829,1768078238849,-303.10001603,0.00019278,2]
[401254830,1768078238858,-360.45,0.000193,2]
[401254831,1768078238867,-10523.09,0.000193,2]
[401254832,1768078238876,-303.10001603,0.00019467,2]
[401254833,1768078238886,-303.10001603,0.00019656,2]